[Event "European Women-ch 2023"]
[Site "Petrovac"]
[Date "2023.03.21"]
[Round "4.8"]
[White "Tsolakidou, Stavroula"]
[Black "Danielian, Elina"]
[Result "0-1"]
[ECO "C02"]
[WhiteElo "2358"]
[BlackElo "2431"]
[Annotator "TA"]
[PlyCount "82"]
[EventDate "2023.03.15"]
[EventType "swiss"]
[EventCountry "MNE"]
[SourceTitle "playchess.com"]
[Source "ChessBase"]
[SourceQuality "1"]
[TimeControl "40/5400+30:1800+30"]

{[%evp 15,82,31,33,25,49,33,37,33,37,32,36,31,42,18,20,14,12,20,24,10,33,0,14,-52,-27,-38,-43,-86,-35,-78,-72,-150,-131,-132,-108,-117,-85,-86,-35,-42,-41,-33,-41,-39,-12,-65,-61,-399,-390,-424,-425,-652,-641,-641,-626,-742,-736,-736,-729,-800,-788,-798,-797,-787,-731,-1208,-1188,-1233,-1188]} 1. e4 {[%emt 0:00:04]} e6 {[%emt 0:00:04]} 2. d4 {[%emt 0:00:05]} d5 {[%emt 0:00:02]} 3. e5 {[%emt 0:00:25]} c5 {[%emt 0:00:05]} 4. c3 {[%emt 0:00:06]} Nc6 {[%emt 0:00:04]} 5. Nf3 {[%emt 0:00:05]} Bd7 {[%emt 0:00:04]} 6. Be2 {[%emt 0:00:18]} Nge7 {[%emt 0:00:05][%cal Bg8e7,Be7f5,Bf5h4][%mdl 32]} 7. O-O {[%emt 0:01:17]} Nf5 {[%emt 0:01:47]} 8. dxc5 {[%emt 0:00:38]} Bxc5 {[%emt 0:01:02]} 9. Bd3 {[%emt 0:00:24] C02: French: Advance Variation.} Nh4 {[%emt 0:01:44]} 10. Nbd2 {[%emt 0:03:08][%cal Bb1d2,Bd2b3,Bb3d4][%mdl 32]} Ng6 {[%emt 0:00:35]} 11. Nb3 {[%emt 0:00:31] Black must now prevent Bxg6. White is slightly better.} Bb6 {[%emt 0:03:18]} 12. Re1 {[%emt 0:06:22]} O-O {[%emt 0:03:17]} 13. Nbd4 {[%emt 0:19:56] [#]} Qb8 $146 {[%emt 0:09:31][%cal Rc6e5]} ({Predecessor:} 13... h6 14. Bxg6 fxg6 15. Be3 g5 16. h3 Bxd4 17. Bxd4 b6 18. Qd3 Be8 19. b4 Qd7 {½-½ Shirov,A (2640)-Baklan,V (2604) ROM-chT Baile Govora 2017 (7.4)}) 14. Bxg6 {[%emt 0:14:13]} fxg6 {[%emt 0:01:00]} 15. Qd3 {[%emt 0:01:42]} a6 {[%emt 0:06:45]} 16. h4 $1 {[%emt 0:11:49]} Bc7 {[%emt 0:03:53][%cal Rc6e5]} 17. Qe3 {[%emt 0:03:26]} h6 {[%emt 0:02:24]} 18. Bd2 {[%emt 0:00:59]} (18. b3 {is interesting.} Bb6 19. Ba3 Rf5 20. Bd6) 18... Ne7 {[%emt 0:04:44]} 19. g4 {[%emt 0:08:21]} (19. Qd3 $11) 19... Nc6 {[%emt 0:00:57]} 20. Kg2 {[%emt 0:01:13]} Rf7 {[%emt 0:00:17]} 21. Qe2 {[%emt 0:03:17]} Qd8 {[%emt 0:03:49]} (21... Qf8 $17 {[%cal Oc6e5] Threatens to win with ...Nxe5!} 22. Qd3 Bb6) 22. Rh1 {[%emt 0:01:00]} Qe7 {[%emt 0:00:44]} 23. Raf1 {[%emt 0:02:48]} (23. Rh2 $142) 23... Raf8 $17 {[%emt 0:00:25]} 24. b3 {[%emt 0:06:04]} Qd8 {[%emt 0:16:08]} 25. Bc1 {[%emt 0:02:13]} Qb8 {[%emt 0:01:12]} 26. Ba3 {[%emt 0:00:32]} Rc8 {[%emt 0:04:10]} ({Black should play} 26... Rf4 $17 27. Nxc6 Bxc6) 27. Re1 $15 {[%emt 0:04:37]} Rf4 {[%emt 0:00:35]} 28. Nxc6 {[%emt 0:03:36]} Bxc6 {[%emt 0:02:20]} 29. Nd4 {[%emt 0:00:35]} Re4 $36 {[%emt 0:04:41][%mdl 2112] [#] Deflection. Black is more active.} (29... Bb6 {simplifies} 30. f3 Bxd4 31. cxd4 Rxd4 32. Bd6 Qa8) 30. Qd3 {[%emt 0:00:09]} (30. Qd2 $11) 30... Bxe5 {[%emt 0:05:25]} ({Much less strong is} 30... Rxe5 31. Nxc6 (31. Qxg6 Be8 $11) (31. Nxe6 $2 {loses.} d4+ 32. Kh3 Rxe6 $19) 31... bxc6 32. Qxg6 $16 (32. Qxa6 Qa8 $15)) 31. Nxc6 $4 {[%emt 0:00:31][%mdl 8192] Loses the game.} (31. f3 $15 Rxe1 32. Rxe1) 31... Rxg4+ $19 {[%emt 0:05:29]} 32. Kh3 {[%emt 0:01:21]} Rxc6 {[%emt 0:00:05] Black is clearly winning.} 33. Kxg4 {[%emt 0:02:18]} (33. Bb2 $142 h5 34. Rhg1) 33... h5+ {[%emt 0:00:07]} 34. Kf3 {[%emt 0:00:12]} Rxc3 {[%emt 0:00:04]} 35. Ke2 {[%emt 0:01:55]} Rxd3 {[%emt 0:00:09]} 36. Kxd3 {[%emt 0:00:04]} Qc7 {[%emt 0:05:14]} 37. Bb4 {[%emt 0:01:01]} Bf6 {[%emt 0:00:21]} 38. Bd2 {[%emt 0:01:11]} e5 {[%emt 0:00:41][%cal Be6e5,Be5e4][%mdl 32] aiming for ...e4+.} 39. f3 {[%emt 0:00:52]} Qd7 {[%emt 0:00:06]} 40. Ref1 {[%emt 0:00:00] [#]} e4+ $1 {[%emt 0:00:00]} 41. Ke2 {[%emt 0:02:11]} (41. Kc2 Qc8+) 41... Qb5+ {[%emt 0:05:21] Weighted Error Value: White=0.47/Black=0.10 (very precise)} 0-1

[Event "European Women-ch 2023"]
[Site "Petrovac"]
[Date "2023.03.21"]
[Round "4.8"]
[White "Brunello, Marina"]
[Black "Zaksaite, Salomeja"]
[Result "1-0"]
[ECO "B33"]
[WhiteElo "2346"]
[BlackElo "2187"]
[Annotator "TA"]
[PlyCount "57"]
[EventDate "2023.03.15"]
[EventType "swiss"]
[EventCountry "MNE"]
[SourceTitle "playchess.com"]
[Source "ChessBase"]
[SourceQuality "1"]
[TimeControl "40/5400+30:1800+30"]

{[%evp 11,57,0,11,7,7,0,18,-31,-21,-32,42,36,33,51,108,111,120,0,0,0,80,91,122,119,162,158,198,195,216,220,226,220,387,390,377,368,449,447,552,554,556,552,546,530,748,747,709,463]} 1. e4 {[%emt 0:00:04]} c5 {[%emt 0:00:14]} 2. Nf3 {[%emt 0:00:10]} Nc6 {[%emt 0:00:22]} 3. d4 {[%emt 0:00:08]} cxd4 {[%emt 0:00:05]} 4. Nxd4 {[%emt 0:00:03]} Nf6 {[%emt 0:00:05]} 5. Nc3 {[%emt 0:00:06]} e5 {[%emt 0:00:44]} 6. Nde2 {[%emt 0:00:29]} Bb4 {[%emt 0:05:33]} 7. a3 {[%emt 0:01:08] B33: Sicilian: Pelikan and Sveshnikov Variations.} Ba5 {[%emt 0:00:11]} 8. Bg5 {[%emt 0:08:36]} h6 {[%emt 0:00:38] [#]} 9. Be3 $146 {[%emt 0:01:27]} (9. Bxf6 $11 Qxf6 10. Qd3) ({Predecessor:} 9. Bh4 g5 10. Bg3 Nxe4 11. b4 Nxc3 12. Nxc3 Bb6 13. Nd5 d6 14. h4 Be6 15. hxg5 {1-0 Andreikin,D (2726)-Zhigalko,S (2572) Clash of the Titans blitz 2020 (2)}) 9... Nxe4 $15 {[%emt 0:10:03]} 10. b4 {[%emt 0:05:06] [#]} Nxb4 $1 {[%emt 0:11:22]} 11. axb4 $14 {[%emt 0:01:18]} (11. Nxe4 $2 Nxc2#) 11... Bxb4 {[%emt 0:00:03]} 12. Qd3 {[%emt 0:01:44]} (12. Rxa7 $2 Nxc3 13. Nxc3 Rxa7 $19) 12... Qc7 {[%emt 0:00:34]} 13. Bd2 $36 {[%emt 0:00:27][%mdl 2048] White has strong initiative.} Nxd2 {[%emt 0:00:29] [#]} 14. Kxd2 {[%emt 0:00:15]} (14. Nd5 $1 $16 {[%cal Rd5c7]} Nf3+ {[%mdl 64] Discovered Attack (Double check)} 15. Kd1) 14... O-O $11 {[%emt 0:02:03][%cal Od7d5] White must now prevent ...d5!} 15. Kc1 {[%emt 0:04:05] Hoping for Nd5.} e4 {[%emt 0:19:51] [#]} 16. Qd4 $1 $16 {[%emt 0:13:11]} (16. Nxe4 d5 17. N4c3 (17. Qxd5 $2 Be6 $19) 17... Rd8 $11) 16... Bc5 {[%emt 0:00:18]} 17. Qxe4 {[%emt 0:00:25] White is more active.} d5 {[%emt 0:08:50]} 18. Nxd5 {[%emt 0:09:53]} (18. Qxd5 Be6 19. Qf3 Rac8 $17) 18... Qd6 {[%emt 0:00:11][%cal Oc8d7]} 19. Nec3 {[%emt 0:01:30][%cal Be2c3,Bc3b5,Bb5d6,Bd6f5,Bf5e7][%mdl 32]} Be6 {[%emt 0:00:24]} 20. Bd3 {[%emt 0:04:02][%csl Gd3][%cal Re4h7]} f5 {[%emt 0:00:07]} 21. Qf4 {[%emt 0:01:53]} Rac8 $2 {[%emt 0:33:07]} (21... Qd7 {might work better.} 22. Re1 Bd6) 22. Qxd6 $18 {[%emt 0:06:10]} Bxd6 {[%emt 0:00:03] This pair of bishops is nice.} 23. Re1 {[%emt 0:12:37]} (23. Rxa7 Rc5 24. Re1 Bf7 25. Rxb7 Rxd5 26. Nxd5 (26. Rxf7 Ba3+ 27. Kd2 Rxd3+ 28. cxd3 Kxf7 $16) 26... Bxd5 $18) 23... Bf7 {[%emt 0:02:43]} 24. Nb5 {[%emt 0:00:44] White is clearly winning.} ({Weaker is} 24. Rxa7 Rc5 25. Rxb7 Rxd5 26. Nxd5 (26. Rxf7 Ba3+ 27. Kd2 Rxd3+ 28. cxd3 Kxf7 $16) 26... Bxd5 $18) ({Don't take} 24. Bxf5 Rc4 25. Be6 (25. Rxa7 Bxd5 26. Nxd5 Rxf5 $14) 25... Bxe6 $18) 24... Bxd5 {[%emt 0:02:49]} 25. Nxd6 {[%emt 0:00:08]} Rc7 {[%emt 0:01:36]} 26. Nxf5 {[%emt 0:01:11]} Bxg2 {[%emt 0:00:07]} 27. Rxa7 {[%emt 0:00:27]} Bh3 {[%emt 0:00:52]} 28. Ne7+ {[%emt 0:00:13]} Kf7 {[%emt 0:00:13]} 29. Bg6+ {[%emt 0:00:33] Weighted Error Value: White=0.09 (flawless) /Black=0.38} 1-0

[Event "European Women-ch 2023"]
[Site "Petrovac"]
[Date "2023.03.21"]
[Round "4.8"]
[White "Shpanko, Nadiia"]
[Black "Ismayil, Malak"]
[Result "1/2-1/2"]
[ECO "E26"]
[WhiteElo "2164"]
[BlackElo "2011"]
[Annotator "TA"]
[PlyCount "99"]
[EventDate "2023.03.15"]
[EventType "swiss"]
[EventCountry "MNE"]
[SourceTitle "playchess.com"]
[Source "ChessBase"]
[SourceQuality "1"]
[TimeControl "40/5400+30:1800+30"]

{[%evp 11,99,0,10,0,18,35,52,13,20,13,8,0,0,0,0,-18,0,0,0,-5,-6,-12,-23,-87,-28,-44,-47,-88,-64,-60,-60,-60,-68,-65,-65,-82,-73,-64,-60,-50,-58,-36,-46,-49,-53,-104,-110,-106,-83,-187,-96,-104,-69,-69,-39,-35,-6,-55,-18,-22,-35,-109,-85,-86,-8,-8,0,-8,-8,0,0,0,0,0,42,42,41,0,0,0,0,0,0,0,0,0,0,0,0,0]} 1. d4 {[%emt 0:00:03]} Nf6 {[%emt 0:00:05]} 2. c4 {[%emt 0:00:30]} e6 {[%emt 0:00:04]} 3. Nc3 {[%emt 0:00:46]} d5 {[%emt 0:01:54]} 4. e3 {[%emt 0:07:02]} Bb4 {[%emt 0:20:28]} 5. a3 {[%emt 0:02:15]} Bxc3+ {[%emt 0:01:39]} 6. bxc3 {[%emt 0:00:06]} c5 {[%emt 0:03:05] 6...c6 is the modern continuation.} 7. Nf3 {[%emt 0:03:22] E26: Nimzo-Indian: Sämisch: 5...c5 6 e3.} Nbd7 {[%emt 0:07:41]} 8. cxd5 {[%emt 0:05:05]} exd5 {[%emt 0:00:16]} 9. Bd3 {[%emt 0:08:17] White is slightly better.} Qa5 {[%emt 0:09:34]} 10. Bb2 {[%emt 0:05:12] [#]} cxd4 $146 {[%emt 0:17:18]} ({Predecessor:} 10... b6 11. O-O Ba6 12. Bxa6 Qxa6 13. a4 O-O 14. Qb3 Rfc8 15. Rfd1 c4 16. Qc2 Qb7 {0-1 Kaleta,B (2110)-Babanin,G (2094) EU-ch blitz Katowice 2017 (19)}) 11. Nxd4 {[%emt 0:01:32]} O-O {[%emt 0:02:18]} 12. O-O {[%emt 0:02:10]} Ne5 {[%emt 0:01:40]} 13. Be2 {[%emt 0:12:31]} Bg4 {[%emt 0:07:19]} 14. f3 {[%emt 0:08:51]} Bd7 {[%emt 0:00:38]} 15. Qb3 {[%emt 0:01:01]} Rfe8 {[%emt 0:02:04][%cal Oe5c4]} 16. Rfe1 {[%emt 0:02:59]} (16. Qxb7 $2 Reb8 $19) 16... Rac8 {[%emt 0:00:44]} 17. Rac1 {[%emt 0:03:32] [#]} (17. Qxb7 $2 Rb8 18. Qa6 Qxa6 19. Bxa6 Rxb2 $19) (17. Rab1 $11) 17... a6 {[%emt 0:00:34]} (17... Nc4 $1 $17 18. Bxc4 (18. Qxb7 $2 Rb8 $19) 18... dxc4) 18. Qb4 {[%emt 0:03:56] Prevents Ba4.} (18. Qxb7 $2 {is the wrong capture.} Rb8 19. Qxa6 Qxa6 20. Bxa6 Rxb2 $19) 18... Qc7 {[%emt 0:06:39]} 19. a4 {[%emt 0:06:49]} a5 {[%emt 0:01:39]} 20. Qa3 {[%emt 0:03:04]} Nc4 {[%emt 0:00:27]} 21. Bxc4 {[%emt 0:00:04]} Qxc4 {[%emt 0:00:03]} 22. Ra1 {[%emt 0:00:15] White is weak on the light squares} h5 {[%emt 0:00:11]} 23. Nb3 {[%emt 0:02:49]} b6 {[%emt 0:00:16]} 24. Nd4 {[%emt 0:00:43]} h4 {[%emt 0:03:06]} 25. Qd6 {[%emt 0:04:00]} Qc7 {[%emt 0:04:20]} 26. Qxc7 {[%emt 0:04:39]} Rxc7 {[%emt 0:00:01]} 27. Kf2 {[%emt 0:00:55]} Rc4 {[%emt 0:00:49]} 28. Ra3 {[%emt 0:00:36]} (28. Rec1 $15) 28... Bxa4 $17 {[%emt 0:01:27]} ({Worse is} 28... Rxa4 29. Rxa4 Bxa4 30. Ra1 $15) 29. Nf5 {[%emt 0:00:27]} Re6 {[%emt 0:01:23] Repels Nd6} 30. e4 {[%emt 0:01:06]} Bd7 {[%emt 0:01:57]} (30... dxe4 $19 31. Ne3 exf3 32. Nxc4 Ng4+ 33. Kxf3 Rxe1 34. Rxa4 b5 35. Rxa5 Nxh2+ 36. Kf2 Rf1+ 37. Ke2 bxc4) 31. e5 {[%emt 0:04:54]} Nh5 {[%emt 0:00:32]} (31... Rf4 {is interesting.} 32. exf6 Rxf5 33. fxg7 Rxe1 34. Kxe1 h3) 32. g3 {[%emt 0:01:11] Wards off Nf4} hxg3+ {[%emt 0:00:18]} 33. hxg3 {[%emt 0:00:03]} a4 {[%emt 0:00:19]} (33... f6 $5 {[%cal Rf6e5]} 34. Rd1 fxe5 35. Rxd5 Nf6 $17) 34. Bc1 {[%emt 0:01:58]} (34. Ne3 $11 {should be considered.}) 34... g6 {[%emt 0:00:40]} (34... f6 $5 {[%cal Rf6e5]} 35. Nd4 Rxe5 $15) 35. Ne3 {[%emt 0:02:27][%csl LRc4,LRd5]} Rc5 {[%emt 0:00:20]} 36. f4 {[%emt 0:00:56]} (36. Ng2 $15) 36... b5 {[%emt 0:06:00]} 37. Rd1 {[%emt 0:00:23] [#]} Bc6 {[%emt 0:00:20]} ({Better is} 37... f6 $1 $17 38. Nxd5 fxe5) 38. Nc2 $11 {[%emt 0:00:29]} Re8 {[%emt 0:00:17]} 39. Be3 {[%emt 0:01:14]} Rc4 {[%emt 0:00:01]} 40. Nb4 {[%emt 0:00:00]} Rc8 {[%emt 0:00:00]} 41. Nxc6 {[%emt 0:05:44]} R4xc6 {[%emt 0:02:44]} 42. Rxd5 {[%emt 0:00:07]} Rxc3 {[%emt 0:00:22]} 43. Rxc3 {[%emt 0:00:09]} Rxc3 {[%emt 0:00:01]} 44. Rxb5 {[%emt 0:06:56][%mdl 4096] Endgame KRB-KRN} Ng7 {[%emt 0:11:25] The position is equal.} 45. Rb8+ {[%emt 0:00:59]} Kh7 {[%emt 0:00:04]} 46. g4 {[%emt 0:00:57]} a3 {[%emt 0:01:42]} 47. Ra8 {[%emt 0:01:05]} Rc2+ {[%emt 0:01:25]} 48. Kf3 {[%emt 0:00:42]} a2 {[%emt 0:01:15]} 49. Ke4 {[%emt 0:00:47]} Re2 {[%emt 0:00:53]} 50. Kf3 {[%emt 0:00:21] Weighted Error Value: White=0.15 (very precise) /Black=0.15 (very precise)} 1/2-1/2

[Event "European Women-ch 2023"]
[Site "Petrovac"]
[Date "2023.03.21"]
[Round "4.9"]
[White "Badelka, Olga"]
[Black "Cyfka, Karina"]
[Result "1-0"]
[ECO "E51"]
[WhiteElo "2428"]
[BlackElo "2350"]
[Annotator "TA"]
[PlyCount "103"]
[EventDate "2023.03.15"]
[EventType "swiss"]
[EventCountry "MNE"]
[SourceTitle "playchess.com"]
[Source "ChessBase"]
[SourceQuality "1"]
[TimeControl "40/5400+30:1800+30"]

{[%evp 13,103,7,0,0,28,24,23,27,24,23,24,-8,-13,-8,112,18,32,22,93,47,41,33,77,30,54,64,65,42,43,65,73,56,126,106,99,74,77,38,144,131,155,150,136,128,150,129,256,206,224,218,290,244,206,202,211,178,183,179,158,148,330,331,333,330,393,390,386,387,439,440,435,435,465,397,498,499,481,487,548,547,604,592,636,640,623,607,657,623,775,761,1141,1119]} 1. d4 {[%emt 0:00:04]} Nf6 {[%emt 0:00:07]} 2. c4 {[%emt 0:00:05]} e6 {[%emt 0:00:08]} 3. Nc3 {[%emt 0:00:06]} Bb4 {[%emt 0:00:29]} 4. e3 {[%emt 0:00:07]} O-O {[%emt 0:01:36]} 5. Bd2 {[%emt 0:00:05]} d5 {[%emt 0:05:02]} 6. Nf3 {[%emt 0:00:33]} b6 {[%emt 0:05:27]} 7. cxd5 {[%emt 0:00:12]} exd5 {[%emt 0:00:05]} 8. Rc1 {[%emt 0:00:07] E51: Nimzo-Indian: Rubinstein: 4...0-0 5 Nf3 d5.} a6 {[%emt 0:07:27]} 9. Bd3 {[%emt 0:00:29]} Bb7 {[%emt 0:00:23]} 10. Ne5 {[%emt 0:00:24] White has an edge.} Bd6 {[%emt 0:03:06]} 11. f4 {[%emt 0:00:15]} c5 {[%emt 0:00:36]} 12. Qf3 {[%emt 0:00:11]} Nc6 {[%emt 0:07:15]} 13. Qh3 {[%emt 0:00:08][%cal Oc3d5]} Ne7 {[%emt 0:03:26] [#]} (13... cxd4 $2 14. Nxd5 g6 15. Nxc6 $18) (13... h6 $1 $11) 14. O-O {[%emt 0:11:39] White has more active pieces. The black rooks are badly placed.} (14. Nd7 $1 $16 {[%cal Rd7f6] White wants to mate with Nxf6+.} Ng6 15. Nxf8 Nxf8 16. O-O) 14... Ne4 {[%emt 0:09:56]} 15. Be1 $40 {[%emt 0:00:47][%mdl 128] [#] White mounts an attack.} (15. dxc5 {with more complications.} Bxc5 16. Na4 Bc8 17. Qh4) 15... f5 $146 {[%emt 0:08:14]} (15... cxd4 $11 {keeps the balance.} 16. exd4 Kh8) ({Predecessor:} 15... Qc8 16. Nd7 Rd8 17. Nxb6 Qxh3 18. gxh3 Rab8 19. Ne2 Nf5 20. Bxe4 dxe4 21. dxc5 Nxe3 22. cxd6 Rxd6 {½-½ Kosic,D (2445)-Vetokhin,S (2261) Arandjelovac GM 2nd 2021 (6)}) 16. dxc5 {[%emt 0:02:54]} ({White should play} 16. Bh4 $16) 16... Nxc5 $14 {[%emt 0:14:41]} 17. Bc2 {[%emt 0:00:38]} Qe8 {[%emt 0:06:26]} 18. Rd1 {[%emt 0:05:08]} (18. Bh4 $16) 18... Ne6 {[%emt 0:05:50]} 19. Bh4 {[%emt 0:12:41]} g5 $1 {[%emt 0:00:21] [#] Threatens to win with ...Bxe5.} 20. Bg3 {[%emt 0:02:05] fxg5 is the strong threat.} (20. Bxg5 $2 {loses.} Nxg5 21. Qh4 Bxe5 22. fxe5 Qg6 $19) (20. Be1 $5 {[%cal Rh3h6]} gxf4 {[%mdl 64] Remove Defender} 21. exf4 Nxf4 {[%mdl 64] Remove Defender} 22. Rxf4 Bxe5 23. Rf1 $14) 20... Bxe5 {[%emt 0:06:39]} 21. fxe5 {[%emt 0:00:05] And now e4 would win.} Qg6 {[%emt 0:00:35]} 22. Be1 {[%emt 0:04:06]} Rad8 {[%emt 0:04:21]} ({Black should try} 22... Rac8 $14) 23. Ne2 {[%emt 0:02:23]} a5 {[%emt 0:01:47]} 24. Ng3 {[%emt 0:10:25][%cal Rg3f5]} Ng7 {[%emt 0:00:15]} 25. Bc3 {[%emt 0:01:03]} Qe6 {[%emt 0:07:09]} (25... Bc8 $14) 26. Ne2 $16 {[%emt 0:04:50]} Qg6 {[%emt 0:00:00]} 27. Nd4 {[%emt 0:00:21]} Bc8 {[%emt 0:00:00]} 28. Qf3 {[%emt 0:03:33]} g4 {[%emt 0:00:00]} 29. Qf2 {[%emt 0:04:27]} Nc6 {[%emt 0:00:00]} (29... Ba6 $16 {was called for.}) 30. Ne2 {[%emt 0:00:18] Hoping for Nf4.} Be6 {[%emt 0:00:26]} 31. Nf4 {[%emt 0:00:47]} Qf7 {[%emt 0:00:02]} 32. Ba4 {[%emt 0:01:10]} Ne7 {[%emt 0:01:06]} 33. Bd4 {[%emt 0:00:19] Black is weak on the dark squares} Rb8 {[%emt 0:00:24]} 34. Rc1 {[%emt 0:10:48]} b5 {[%emt 0:00:21]} 35. Bc2 {[%emt 0:00:20]} Ng6 {[%emt 0:01:13]} 36. Bc5 {[%emt 0:02:34] This pair of bishops is nice.} Nxe5 $2 {[%emt 0:01:17] A mistake that costs the game.} (36... Rfe8 $16 {is a better defense.} 37. a3 Rbc8) 37. Bxf8 $18 {[%emt 0:00:13]} Rxf8 {[%emt 0:00:08]} 38. Qd2 {[%emt 0:01:16]} Nc4 {[%emt 0:00:43]} 39. Qd4 {[%emt 0:00:06]} Qf6 {[%emt 0:00:22]} 40. b3 {[%emt 0:00:00]} ({Worse is} 40. Nxd5 Qxd4 41. Ne7+ Kf7 42. exd4 Kxe7 $17) 40... Nd6 {[%emt 0:00:00]} 41. Qxf6 {[%emt 0:08:30]} ({Inferior is} 41. Nxd5 Qxd4 42. Ne7+ Kf7 43. exd4 Kxe7 $17) 41... Rxf6 {[%emt 0:02:26]} 42. Rfd1 {[%emt 0:01:22]} Nge8 {[%emt 0:01:21]} 43. Nxd5 {[%emt 0:03:18]} Bxd5 {[%emt 0:02:11]} 44. Rxd5 {[%emt 0:00:12] White is clearly winning.} Kf7 {[%emt 0:00:26]} 45. Bd3 {[%emt 0:00:45]} Ke6 {[%emt 0:01:13]} 46. Rdc5 {[%emt 0:00:45]} g3 {[%emt 0:00:04]} 47. hxg3 {[%emt 0:00:28]} Rg6 {[%emt 0:00:12]} 48. Bxb5 {[%emt 0:00:27]} Nf6 {[%emt 0:00:34]} 49. Bc4+ {[%emt 0:08:00]} Kd7 {[%emt 0:00:51]} 50. Rd1 {[%emt 0:01:13]} Rxg3 {[%emt 0:01:03]} 51. Rxa5 {[%emt 0:01:50] Ra7+ would be deadly.} Rxe3 {[%emt 0:00:09]} 52. Ra7+ {[%emt 0:00:10] Weighted Error Value: White=0.15 (very precise) /Black=0.38} 1-0

[Event "European Women-ch 2023"]
[Site "Petrovac"]
[Date "2023.03.21"]
[Round "4.9"]
[White "Gajcin, Marina"]
[Black "Savina, Anastasia"]
[Result "1-0"]
[ECO "C67"]
[WhiteElo "2215"]
[BlackElo "2345"]
[Annotator "TA"]
[PlyCount "83"]
[EventDate "2023.03.15"]
[EventType "swiss"]
[EventCountry "MNE"]
[SourceTitle "playchess.com"]
[Source "ChessBase"]
[SourceQuality "1"]
[TimeControl "40/5400+30:1800+30"]

{[%evp 14,83,0,-4,0,7,1,0,26,11,22,17,8,14,12,-12,-21,-13,-36,-54,-10,0,0,-81,-18,-38,-41,-57,23,-29,-27,-50,-55,-57,-50,-52,-47,-74,-51,-55,-55,-57,-57,-57,-39,-39,-39,-50,-43,-360,-352,-925,-910,-897,-882,-6008,-5243,-1658,-921,-857,-821,-29983,29986,29987,29987,29988,29996,29997,29997,0,29998,29999]} 1. e4 {[%emt 0:00:03]} e5 {[%emt 0:00:18]} 2. Nf3 {[%emt 0:00:07]} Nc6 {[%emt 0:00:03]} 3. Bb5 {[%emt 0:00:19]} Nf6 {[%emt 0:00:48]} 4. O-O {[%emt 0:00:30]} Nxe4 {[%emt 0:00:43]} 5. d4 {[%emt 0:00:11]} Nd6 {[%emt 0:00:41]} 6. dxe5 {[%emt 0:00:25]} Nxb5 {[%emt 0:00:07]} 7. a4 {[%emt 0:00:05]} d6 {[%emt 0:03:09]} 8. e6 {[%emt 0:01:06] [#]} Bxe6 {[%emt 0:00:30][%cal Oa7a6] C67: Ruy Lopez: Berlin Defence: 4 0-0 Nxe4.} 9. axb5 {[%emt 0:00:08]} Ne5 {[%emt 0:00:48]} 10. Nd4 {[%emt 0:00:17]} Bd7 {[%emt 0:14:50] The position is equal.} 11. f4 {[%emt 0:26:23][%mdl 1024] White has compensation.} Ng4 {[%emt 0:15:32]} (11... Bg4 $2 12. Qe1 $18) 12. Re1+ {[%emt 0:08:02]} (12. Qf3 $5 {[%cal Rf3b7]}) 12... Be7 {[%emt 0:00:10]} 13. Qe2 {[%emt 0:01:04]} Kf8 {[%emt 0:23:58]} 14. Nc3 {[%emt 0:21:54]} (14. h3 {simplifies} Nh6 15. Be3 Nf5 16. Nxf5 Bxf5 17. Nc3) 14... Bh4 {[%emt 0:02:52] White must now prevent ...Bf2+.} 15. g3 {[%emt 0:00:56]} Bf6 {[%emt 0:00:17]} 16. Nf3 {[%emt 0:09:09]} h5 {[%emt 0:04:57] [#]} (16... c6 $5 {[%cal Rd8b6]}) 17. Ne4 $146 {[%emt 0:03:58]} ({Predecessor:} 17. Nd5 c6 18. bxc6 Bxc6 19. c4 a6 20. h3 Bxd5 21. cxd5 Nh6 22. Be3 Qd7 23. Kg2 {0-1 Calzetta Ruiz,M (2235)-Topalov,V (2740) Salamanca Uni 8th rapid 2018 (5)}) 17... c6 {[%emt 0:08:16]} 18. h3 {[%emt 0:08:16]} (18. Nxd6 cxb5 19. Be3 h4 $15) (18. Be3 $11 {keeps the balance.}) 18... d5 {[%emt 0:13:53]} (18... Qb6+ $17 19. Kf1 Nh6) 19. Nxf6 {[%emt 0:04:29]} (19. Neg5 {with more complications.} Qb6+ 20. Kg2 Nh6 21. Ne5) 19... Nxf6 {[%emt 0:00:09]} 20. Ng5 {[%emt 0:01:30]} Bf5 {[%emt 0:01:49]} (20... Kg8 21. Qe7 Qe8 22. Qxe8+ Bxe8 23. b6 $16) ({Black should play} 20... cxb5 $15 21. Be3 (21. Qe3 a6 $15) 21... b6) 21. Be3 {[%emt 0:02:48]} ({White should try} 21. Qe5 Qd7 22. bxc6 bxc6 23. Be3) 21... Ne4 $11 {[%emt 0:02:06]} 22. Nxe4 {[%emt 0:01:50]} Bxe4 {[%emt 0:00:17]} 23. bxc6 {[%emt 0:00:48]} bxc6 {[%emt 0:00:23]} 24. Bxa7 {[%emt 0:00:10]} Kg8 {[%emt 0:00:29]} 25. Bd4 {[%emt 0:00:29]} Rh6 {[%emt 0:01:12][%cal Bh8h6,Bh6e6,Be6e5][%mdl 32]} 26. b4 {[%emt 0:01:04]} Rxa1 {[%emt 0:03:01]} 27. Rxa1 {[%emt 0:00:09]} Qc8 {[%emt 0:01:10]} 28. Kh2 {[%emt 0:00:18]} Qf5 {[%emt 0:00:28]} 29. c3 {[%emt 0:02:34]} Re6 {[%emt 0:01:12]} (29... h4 {is more complex.} 30. Rg1 hxg3+ 31. Rxg3 f6) 30. Qf2 {[%emt 0:03:26][%cal Og3g4]} Bb1 {[%emt 0:00:47] ...Qd3 would be deadly.} 31. Ra8+ $2 {[%emt 0:02:53][%mdl 8192]} (31. Qf1 $15 Bd3 32. Qf3 (32. Ra8+ $2 Kh7 $17)) 31... Kh7 $19 {[%emt 0:00:02] And now ...Qd3 would win.} 32. Be5 $2 {[%emt 0:00:31]} (32. Qd2 Bd3 33. Ra2) 32... Rxe5 {[%emt 0:00:56][%mdl 64] Pin} 33. g4 {[%emt 0:00:06]} Qf6 {[%emt 0:00:24] Threatens to win with ...Re4.} ({Worse is} 33... hxg4 34. hxg4 Qf6 35. g5 $15) 34. Kg3 {[%emt 0:01:00]} h4+ {[%emt 0:00:36]} 35. Kg2 {[%emt 0:00:07]} Be4+ {[%emt 0:00:31]} 36. Kg1 {[%emt 0:00:17]} Re7 {[%emt 0:00:29]} 37. g5 {[%emt 0:00:27]} Qd6 $4 {[%emt 0:00:33][%mdl 8192]} (37... Qxc3 {and life is good for Black.} 38. Kh2 Bf5 39. Qxh4+ Kg6 40. Ra2 Re3 41. Kh1 Rxh3+ 42. Qxh3 Qxh3+ 43. Kg1 Qe3+ 44. Kg2 Kh5 45. Rf2 Qe1 46. Rf3 Be4 47. g6 Qe2+ {[%mdl 64] Pin, Deflection, Double Attack} 48. Kh3 Qxf3+ 49. Kh2 Qg2#) 38. Qxh4+ {[%emt 0:00:24]} Kg6 {[%emt 0:00:01]} 39. Rh8 {[%emt 0:00:38][%csl Gh8][%cal Rh4h7]} f6 {[%emt 0:00:42]} 40. Qh5+ {[%emt 0:00:00]} Kf5 {[%emt 0:00:00]} 41. Qg4+ {[%emt 0:01:42]} Kg6 {[%emt 0:00:19] [#]} 42. f5+ $1 {[%emt 0:02:23][%mdl 512] Never resign too early! An exciting game.   Weighted Error Value: White=0.70/Black=0.47} 1-0